fUSD/lending_fUSD_20250322
["ID","MTS","AMOUNT","RATE_DAILY","PERIOD"]
[356559646,1742665839858,-600.70263248,0.00012,2]
[356559647,1742665839869,-1156.2,0.00012,2]
[356559648,1742665839880,-2689.99555988,0.00012,2]
[356559649,1742665839891,-333.81892786,0.00012,2]
[356559650,1742665839913,-4469.92157864,0.00012,2]
[356559651,1742665839924,-256.69139995,0.00012,2]
[356559652,1742665839935,-38344.0,0.00012,2]
[356559669,1742665845951,-598.39457366,0.00012,2]
[356559680,1742666782484,-300.0,0.00011699,2]
[356559681,1742666782507,-200.0,0.000117,2]
[356559688,1742667031791,-250.0,0.00011,2]
[356559689,1742667031801,-6812.86054009,0.000117,2]
[356559690,1742667031812,-33944.83516647,0.000117,2]
[356559691,1742667031822,-176.07606946,0.000118,2]
[356559692,1742667031831,-236.02645424,0.00011873,2]
[356559693,1742667031840,-45740.61811085,0.0001188,2]
[356559694,1742667031850,-4330.4966,0.000119,2]
[356559695,1742667031859,-241.9911,0.000119,2]
[356559696,1742667031870,-3764.8483,0.000119,2]
[356559697,1742667031880,-1345.1239,0.000119,2]
[356559698,1742667031890,-2284.709,0.000119,2]
[356559699,1742667031900,-4592.41720461,0.000119,2]
[356559700,1742667031915,-1027.55453395,0.000119,2]
[356559701,1742667031952,-1691.75586144,0.000119,2]
[356559702,1742667031961,-2779.74950569,0.000119,2]
[356559703,1742667032059,-46529.60107616,0.000119,2]
[356559717,1742667037729,-19820.53176936,0.000119,2]
[356559880,1742667040127,-283.70517373,0.000119,2]
[356559881,1742667040391,-1687.13154334,0.000119,2]
[356559891,1742667042938,-29825.51263172,0.000119,2]
[356559892,1742667042948,-1742.3436,0.000119,2]
[356559893,1742667042957,-181.7877,0.000119,2]
[356559894,1742667042966,-305.3513,0.000119,2]
[356559895,1742667042975,-793.85554184,0.000119,2]
[356559896,1742667042986,-326.24755816,0.000119,2]
[356559897,1742667042995,-302.6657164,0.00011975,2]
[356559898,1742667043004,-178.50468505,0.00011975,2]
[356559899,1742667043013,-9166.58204039,0.00012,2]
[356559902,1742667044455,-1478.3758,0.00012,2]
[356559939,1742667045919,-164.65203451,0.00011975,2]
[356559941,1742667045929,-29829.56420284,0.00012,2]
[356559956,1742667046083,-251.30898861,0.00012,2]
[356560000,1742667126778,400.0,0.000114,4]
[356560001,1742667128886,800.0,0.000115,4]
[356560002,1742667131058,1300.0,0.000116,4]
[356560003,1742667133152,1700.0,0.000117,4]
[356560004,1742667135246,2200.0,0.000118,4]
[356560005,1742667137363,400.0,0.000119,4]
[356560009,1742667538886,-1118.6362218,0.0001164,2]
[356560010,1742667579231,838.9771663,0.0001164,2]
[356560011,1742667624203,629.2328748,0.0001164,2]
[356560012,1742667669212,471.9246561,0.0001164,2]
[356560013,1742667714285,353.943492,0.0001164,2]
[356560014,1742667759228,265.457619,0.0001164,2]
[356560015,1742667804285,199.0932143,0.0001164,2]
[356560016,1742667894201,199.0932143,0.0001164,2]
[356560018,1742667939249,199.0932143,0.0001164,2]
[356560019,1742667984208,199.0932144,0.0001164,2]
[356560021,1742668075935,475.4551127,0.0001,2]
[356560022,1742668075963,25183.06312161,0.0001,2]
[356560058,1742668232005,-182.0,0.00011799,2]
[356560059,1742668232016,-150.0,0.00011799,2]
[356560060,1742668232026,-150.0,0.00011799,2]
[356560061,1742668232036,-388.11545742,0.000118,2]
[356560062,1742668232058,-24817.01219364,0.000118,2]
[356560063,1742668232069,-5358.28634486,0.000118,2]
[356560064,1742668232158,-2113.28286315,0.000118,2]
[356560065,1742668232172,-774.34181465,0.000118,2]
[356560066,1742668232187,-6360.65215151,0.000118,2]
[356560067,1742668232213,-86.69477477,0.000118,2]
[356560068,1742668232222,-171.30522513,0.000118,2]
[356560069,1742668232270,-347.53257487,0.000118,2]
[356560070,1742668232280,-305.4773216,0.000119,2]
[356560071,1742668232291,-395.0840784,0.000119,2]
[356560072,1742668232301,-362.8059221,0.000119,2]
[356560073,1742668232325,-1051.61655947,0.000119,2]
[356560074,1742668232336,-4482.84851843,0.000119,2]
[356560075,1742668232348,-345.9278,0.000119,2]
[356560076,1742668232357,-243.72197604,0.000119,2]
[356560077,1742668232365,-259.42775694,0.000119,2]
[356560078,1742668232375,-164.65203451,0.000119,2]
[356560079,1742668232385,-5355.38788964,0.00012,2]
[356560080,1742668232396,-1771.45420964,0.00012,2]
[356560089,1742668237949,-7588.02492331,0.00012,2]
[356560090,1742668238218,-4400.0,0.00012,2]
[356560129,1742668240082,-4295.13192817,0.00012,2]
[356560167,1742668240467,-250741.1330671,0.00012,2]
[356560170,1742668240478,-2317.61625348,0.00012,2]
[356560173,1742668240489,-1157.65390319,0.00012,2]
[356560241,1742668243204,-27270.24622916,0.00012,2]
[356560251,1742668246065,-17940.40701677,0.00012,2]
[356560252,1742668246121,-6604.58503882,0.00012,2]
[356560253,1742668246345,-474.2,0.00012,2]
[356560254,1742668246359,-2843.65000929,0.00012,2]
[356560291,1742668897730,-250.0,0.00011,2]
[356560292,1742668897751,-1303.933,0.0001176,2]
[356560293,1742668897771,-451.12264425,0.000119,2]
[356560294,1742668897791,-181.90712364,0.000119,2]
[356560295,1742668898031,-1232.53248618,0.000119,2]
[356560296,1742668898053,-4595.18311448,0.000119,2]
[356560297,1742668898075,-164.65203451,0.000119,2]
[356560298,1742668898097,-150.0,0.00011936,2]
[356560299,1742668898118,-152.36420071,0.00011973,2]
[356560300,1742668898139,-152.05423445,0.00011973,2]
[356560301,1742668898161,-875.0,0.00012,2]
[356560302,1742668898186,-460491.25116178,0.00012,2]
[356560325,1742669432124,-300.0,0.00011899,2]
[356560326,1742669432137,-11464.40664707,0.000119,2]
[356560327,1742669432148,-75252.71585293,0.000119,2]
[356560328,1742669432158,-150.37421475,0.000119,2]
[356560329,1742669432167,-164.65203451,0.000119,2]
[356560330,1742669432176,-352.15213896,0.000119,2]
[356560331,1742669432185,-3063.45540966,0.000119,2]
[356560332,1742669432195,-150.0,0.00011936,2]
[356560333,1742669432204,-155.29464908,0.00011973,2]
[356560334,1742669432214,-300.74080496,0.00011973,2]
[356560335,1742669432223,-787.0,0.00012,2]
[356560336,1742669432232,-19768.847088,0.00012,2]
[356560337,1742669432243,-440256.69181252,0.00012,2]
[356560338,1742669432286,-542.16718762,0.00012,2]
[356560339,1742669432343,-339.86178435,0.00012,2]
[356560340,1742669432355,-1498.37856869,0.00012,2]
[356560341,1742669432398,-4855.52142423,0.00012,2]
[356560352,1742669438223,-413.35807207,0.00012,2]
[356560354,1742669440407,-294.64192793,0.00012,2]
[356560355,1742669440417,-8231.24867631,0.00012,2]
[356560356,1742669440432,-608.85412186,0.00012,2]
[356560357,1742669440444,-649.13499997,0.00012,2]
[356560358,1742669440637,-493.80144382,0.00012,2]
[356560359,1742669440749,-3487.59502579,0.00012,2]
[356560373,1742669446209,-642.0,0.00012,2]
[356560374,1742669446219,-77.933493,0.00012,2]
[356560375,1742669446229,-21537.99323645,0.00012,2]
[356560376,1742669446400,-5554.34980243,0.00012,2]
[356560379,1742669617094,-219.52,0.00010959,2]
[356560380,1742669617122,-1687.6701255,0.0001188,2]
[356560381,1742669617145,-300.0,0.00011899,2]
[356560382,1742669617169,-222.36664878,0.000119,2]
[356560383,1742669617193,-6409.7961,0.000119,2]
[356560384,1742669617217,-3910.6561,0.000119,2]
[356560385,1742669617240,-500.90196486,0.00011973,2]
[356560386,1742669617263,-574.0,0.00012,2]
[356560387,1742669617288,-1986175.08906086,0.00012,2]
[356560388,1742669831476,272.0,0.000124,5]
[356560389,1742670218408,-200.0,0.0001176,2]
[356560390,1742670222873,-181.09745514,0.0001176,2]
[356560391,1742670225367,-509.41215276,0.0001176,2]
[356560392,1742670242254,-152.6363921,0.0001176,2]
[356560393,1742670242276,-56.94106304,0.00011873,2]
[356560394,1742670249484,-103.64216653,0.00011873,2]
[356560395,1742670249507,-47.34783347,0.00011899,2]
[356560396,1742670256433,-167.73673983,0.000118,2]
[356560397,1742670260641,-172.1004613,0.0001164,2]
[356560398,1742670279755,-172.1004613,0.0001164,2]
[356560399,1742670300832,-102.5396424,0.0001164,2]
[356560400,1742670300854,-69.5608189,0.00011741,2]
[356560435,1742670632305,-250.0,0.00011,2]
[356560436,1742670632317,-335.0554238,0.0001164,2]
[356560437,1742670632327,-1000.0,0.00011788,2]
[356560438,1742670632336,-3898.9328,0.000118,2]
[356560439,1742670632345,-1000.0,0.00011854,2]
[356560440,1742670632355,-153.37544227,0.00011899,2]
[356560441,1742670632364,-332.82956415,0.00011899,2]
[356560442,1742670632374,-1382.768,0.000119,2]
[356560443,1742670632383,-1235.827,0.000119,2]
[356560444,1742670632392,-65243.52646359,0.000119,2]
[356560445,1742670632408,-47801.62980011,0.000119,2]
[356560446,1742670632420,-108572.3216338,0.000119,2]
[356560447,1742670632433,-20591.64297604,0.000119,2]
[356560490,1742670638308,-360.92688703,0.000119,2]
[356560503,1742670638746,-287.96771623,0.000119,2]
[356560510,1742670641015,-790.841334,0.0001184,2]
[356560511,1742670641025,-54947.7524232,0.000119,2]
[356560512,1742670641034,-309.11933543,0.000119,2]
[356560513,1742670641043,-2042.30360644,0.000119,2]
[356560514,1742670641053,-1000.0,0.00011914,2]
[356560515,1742670641063,-308.7251395,0.00011973,2]
[356560516,1742670641072,-503.78962376,0.00011973,2]
[356560517,1742670641081,-519.0,0.00012,2]
[356560518,1742670641090,-367621.80989755,0.00012,2]
[356560526,1742670642589,-287.96771623,0.00012,2]
[356560551,1742670643440,-66657.64910273,0.00012,2]
[356560552,1742670643451,-25186.3396482,0.00012,2]
[356560553,1742670643492,-9218.2804762,0.00012,2]
[356560561,1742670647986,547.96870957,0.0001237,10]
[356560563,1742670776480,-163.33020746,0.00010959,2]
[356560565,1742670961075,-281.61309658,0.00010959,2]
[356560566,1742671149340,-250.01656051,0.00010959,2]
[356560567,1742671199798,3018.42,0.00031644,30]
[356560568,1742671365969,-251.2915678,0.0001164,2]
[356560569,1742671365991,-163.33020746,0.000118,2]
[356560570,1742671366012,-301.53306246,0.000119,2]
[356560571,1742671366032,-178.48539372,0.000119,2]
[356560572,1742671366053,-309.11933543,0.000119,2]
[356560573,1742671366073,-2042.30360644,0.000119,2]
[356560574,1742671366093,-503.78962376,0.00011973,2]
[356560575,1742671366113,-308.7251395,0.00011973,2]
[356560576,1742671366133,-1751.73921225,0.0001199,2]
[356560577,1742671366153,-232.98069491,0.00011999,2]
[356560578,1742671366173,-520.0,0.00012,2]
[356560579,1742671366195,-713436.70215627,0.00012,2]
[356560584,1742671611588,2500.0,0.00025,90]
[356560618,1742671831477,-188.4686759,0.0001164,2]
[356560619,1742671831487,-535.6733241,0.00011863,2]
[356560621,1742671831498,-455.4,0.00011863,2]
[356560622,1742671831510,-2942.48649635,0.00011863,2]
[356560623,1742671831531,-8672.44017955,0.00011863,2]
[356560624,1742671831541,-640.7794,0.0001189,2]
[356560625,1742671831550,-1361.53573762,0.000119,2]
[356560626,1742671831559,-41370.990424,0.00012,2]
[356560627,1742671831587,-1914.44525075,0.00012,2]
[356560628,1742671831644,-7012.97163903,0.00012,2]
[356560629,1742671831701,-510.674481,0.00012,2]
[356560630,1742671831712,-1231.7901424,0.00012,2]
[356560631,1742671831724,-714.21207113,0.00012,2]
[356560632,1742671831736,-2531.92377415,0.00012,2]
[356560633,1742671831747,-796.69487304,0.00012,2]
[356560634,1742671831759,-362.5,0.00012,2]
[356560635,1742671831771,-1350.11560118,0.00012,2]
[356560656,1742671837446,-4110.6,0.00012,2]
[356560657,1742671837457,-2919.1999956,0.00012,2]
[356560667,1742671839677,-373471.70134282,0.00012,2]
[356560668,1742671839698,-2569.78267655,0.00012,2]
[356560678,1742671842636,-2404.8,0.00012,2]
[356560686,1742671844333,-651963.0731709,0.00012,2]
[356560687,1742671844353,-29227.82756238,0.00012,2]
[356560688,1742671845511,-44052.34226556,0.00012,2]
[356560689,1742671845733,-4542.7080499,0.00012,2]
[356560690,1742671845745,-525.78903043,0.00012,2]
[356560691,1742671845781,-2654.3241981,0.00012,2]
[356560696,1742671946008,246.76975027,0.00012,6]
[356560699,1742672413858,-150.0,0.00011,2]
[356560700,1742672544492,500.0,0.00025,120]
[356560701,1742672552509,4114.50747092,0.00025,120]
[356560702,1742672602789,209.8,0.00010582,2]
[356560712,1742672853605,-200.0,0.00010647,2]
[356560713,1742672879823,-50.0,0.00010647,2]
[356560714,1742672879845,-100.0,0.00011,2]
[356560715,1742672885211,-150.0,0.00011449,2]
[356560716,1742672891003,-150.0,0.00011507,2]
[356560730,1742673031617,-923.95,0.00011449,2]
[356560731,1742673031722,-620.335,0.00011449,2]
[356560732,1742673031794,-374.252,0.00011449,2]
[356560735,1742673037572,-384.1090751,0.00011449,2]
[356560736,1742673037584,-627.69065215,0.00011449,2]
[356560737,1742673037625,-218.95303375,0.00011449,2]
[356560738,1742673037634,-382.0,0.00011507,2]
[356560739,1742673037643,-188.4686759,0.0001164,2]
[356560740,1742673037653,-834.517,0.0001176,2]
[356560741,1742673037663,-150.0,0.00011863,2]
[356560742,1742673037672,-150.0,0.00011899,2]
[356560743,1742673037681,-258.45691068,0.000119,2]
[356560744,1742673037690,-7441.0262,0.000119,2]
[356560745,1742673037699,-458.8668,0.000119,2]
[356560746,1742673037708,-1000.0,0.000119,2]
[356560747,1742673037718,-2500.0,0.000119,2]
[356560748,1742673037727,-2090.29092044,0.000119,2]
[356560749,1742673037737,-161.0038,0.000119,2]
[356560750,1742673037746,-2302.10364221,0.000119,2]
[356560751,1742673037758,-320.14840894,0.000119,2]
[356560752,1742673037774,-411.93182001,0.000119,2]
[356560753,1742673037827,-820.25186668,0.000119,2]
[356560754,1742673037890,-1181.10047611,0.000119,2]
[356560755,1742673037901,-878.2264047,0.000119,2]
[356560786,1742673039726,-1315.58655922,0.000119,2]
[356560787,1742673039782,-2148.2701255,0.000119,2]
[356560788,1742673039837,-27064.37919663,0.000119,2]
[356560789,1742673039846,-915.7871,0.000119,2]
[356560790,1742673039856,-1000.0,0.000119,2]
[356560791,1742673039865,-190.16193828,0.00011927,2]
[356560792,1742673039875,-155.31669558,0.00011973,2]
[356560793,1742673039885,-160.3880798,0.00011973,2]
[356560794,1742673039894,-153.40413363,0.00011973,2]
[356560795,1742673039903,-152.31118546,0.00011973,2]
[356560796,1742673039912,-500.32859488,0.00011973,2]
[356560797,1742673039922,-150.0,0.00011973,2]
[356560798,1742673039931,-907.69049174,0.00011992,2]
[356560799,1742673039941,-1576519.52499276,0.00012,2]
[356560800,1742673039950,-1577636.89504706,0.00012,2]
[356560801,1742673039960,-370842.08177785,0.00012,2]
[356560802,1742673039969,-5871.3352409,0.00012092,2]
[356560803,1742673039979,-492.65,0.00012153,2]
[356560804,1742673039988,-1251.4,0.00012282,2]
[356560805,1742673039997,-150.0,0.00012295,2]
[356560806,1742673040007,-4033.49,0.00012295,2]
[356560807,1742673040017,-8047.71,0.00012488,2]
[356560808,1742673040026,-200.0,0.00012539,2]
[356560809,1742673040036,-150.0,0.00012594,2]
[356560810,1742673040045,-150.0,0.00012594,2]
[356560811,1742673040054,-3328.1366539,0.00012644,2]
[356560812,1742673040066,-5658.44671927,0.00012652,2]
[356560813,1742673040075,-156.39,0.00012684,2]
[356560814,1742673040086,-1000.0,0.00012881,2]
[356560815,1742673040096,-300.0,0.00013,2]
[356560816,1742673040105,-155.17,0.00013114,2]
[356560817,1742673040115,-584.64,0.00013114,2]
[356560818,1742673040123,-584.64,0.00013114,2]
[356560819,1742673040133,-584.64,0.00013114,2]
[356560820,1742673040143,-584.64,0.00013114,2]
[356560821,1742673040152,-584.64,0.00013114,2]
[356560822,1742673040162,-584.64,0.00013114,2]
[356560823,1742673040171,-584.64,0.00013114,2]
[356560824,1742673040181,-584.64,0.00013114,2]
[356560825,1742673040190,-584.64,0.00013114,2]
[356560826,1742673040200,-584.64,0.00013114,2]
[356560827,1742673040210,-165.01,0.00013155,2]
[356560828,1742673040219,-500.0,0.00013699,2]
[356560829,1742673040228,-362.23,0.000137,2]
[356560830,1742673040238,-362.23,0.000137,2]
[356560831,1742673040248,-418.90066608,0.000137,2]
[356560832,1742673040258,-502.02083896,0.00014323,2]
[356560833,1742673040268,-1000.0,0.00014491,2]
[356560834,1742673040277,-195.83,0.00014618,2]
[356560835,1742673040287,-350.0,0.00015,2]
[356560836,1742673040297,-2090.29092035,0.00015122,2]
[356560837,1742673040309,-1002.2,0.00015886,2]
[356560838,1742673040318,-497.06536713,0.00016029,2]
[356560839,1742673040327,-1000.0,0.00016102,2]
[356560840,1742673040337,-500.0,0.00016712,2]
[356560841,1742673040347,-400.0,0.00017,2]
[356560842,1742673040357,-502.0,0.00017342,2]
[356560843,1742673040367,-150.0,0.0001771,7]
[356560844,1742673040376,-1000.0,0.00017712,2]
[356560845,1742673040387,-196.74,0.00017721,2]
[356560846,1742673040397,-196.74,0.00017758,2]
[356560847,1742673040406,-196.74,0.00017795,2]
[356560848,1742673040416,-1379.48,0.00017798,2]
[356560849,1742673040425,-196.74,0.00017833,2]
[356560850,1742673040435,-164.95,0.00017846,2]
[356560851,1742673040444,-200.0,0.00017846,2]
[356560852,1742673040453,-196.74,0.0001787,2]
[356560853,1742673040463,-164.81,0.00017882,2]
[356560854,1742673040472,-196.74,0.00017907,2]
[356560855,1742673040481,-196.74,0.00017945,2]
[356560856,1742673040491,-23900.0,0.00017952,2]
[356560857,1742673040500,-250.0,0.00017961,2]
[356560858,1742673040510,-196.74,0.00017982,2]
[356560859,1742673040519,-196.74,0.00018019,2]
[356560860,1742673040528,-196.74,0.00018057,2]
[356560861,1742673040538,-2633.47,0.00018075,2]
[356560862,1742673040547,-196.74,0.00018094,2]
[356560863,1742673040556,-196.74,0.00018131,2]
[356560864,1742673040565,-1500.0,0.00018148,2]
[356560865,1742673040575,-1002.2,0.0001815,2]
[356560866,1742673040585,-196.74,0.00018169,2]
[356560867,1742673040595,-290.88,0.00018175,2]
[356560868,1742673040604,-196.74,0.00018206,2]
[356560869,1742673040613,-258.45691063,0.00018233,2]
[356560870,1742673040622,-196.74,0.00018243,2]
[356560871,1742673040632,-179.78,0.00018258,2]
[356560872,1742673040641,-200.0,0.00018273,2]
[356560873,1742673040650,-196.74,0.0001828,2]
[356560874,1742673040659,-196.74,0.00018318,2]
[356560875,1742673040669,-2090.29092035,0.00018344,2]
[356560876,1742673040679,-196.74,0.00018355,2]
[356560877,1742673040689,-196.74,0.00018392,2]
[356560878,1742673040848,-196.74,0.0001843,2]
[356560879,1742673040858,-172.08,0.00018461,2]
[356560880,1742673040867,-160.29,0.000186,2]
[356560881,1742673040876,-155.0,0.00018654,2]
[356560882,1742673040885,-155.0,0.00018841,2]
[356560883,1742673040894,-190.99215272,0.00019,2]
[356560884,1742673040904,-23904.19113364,0.00019,2]
[356560885,1742673040913,-450.0,0.00019,2]
[356560886,1742673040922,-1569.14011032,0.00019,2]
[356560887,1742673040932,-155.0,0.00019027,2]
[356560888,1742673040941,-150.0,0.00019178,2]
[356560889,1742673040951,-155.0,0.00019214,2]
[356560890,1742673040960,-1000.0,0.00019322,2]
[356560891,1742673040969,-369.0,0.000194,2]
[356560892,1742673040978,-155.0,0.000194,2]
[356560893,1742673040987,-993.39,0.00020145,2]
[356560894,1742673040996,-643.31,0.00020145,2]
[356560895,1742673041005,-8128.71,0.00020145,2]
[356560896,1742673041014,-999.99,0.00020145,2]
[356560897,1742673041023,-299.99,0.00020145,7]
[356560898,1742673041033,-3291.86,0.00020145,2]
[356560899,1742673041043,-150.99,0.00020145,2]
[356560900,1742673041052,-5960.87,0.00020145,2]
[356560901,1742673041061,-1002.2,0.00020414,2]
[356560902,1742673041070,-250.0,0.00020548,2]
[356560903,1742673041080,-164.95,0.0002082,2]
[356560904,1742673041089,-164.81,0.00020862,2]
[356560905,1742673041099,-6894.08,0.00020951,5]
[356560906,1742673041109,-150.99,0.00020951,2]
[356560907,1742673041118,-30353.92,0.00020951,2]
[356560908,1742673041129,-9046.92,0.00020951,2]
[356560909,1742673041138,-278.67,0.00020951,2]
[356560910,1742673041148,-243.48,0.00020951,2]
[356560911,1742673041157,-3627.79,0.00020951,2]
[356560912,1742673041167,-2090.29092035,0.00021567,2]
[356560913,1742673041176,-151.0,0.00021734,2]
[356560914,1742673041187,-3939.0,0.00021734,2]
[356560915,1742673041196,-431.045,0.00021734,2]
[356560916,1742673041205,-751.0,0.000219,2]
[356560917,1742673041215,-233.0,0.000219,2]
[356560918,1742673041225,-150.0,0.00021917,2]
[356560919,1742673041235,-350.0,0.00021918,2]
[356560920,1742673041245,-1002.2,0.00022678,2]
[356560921,1742673041254,-179.78,0.00022823,2]
[356560922,1742673041264,-284.44860755,0.00023,2]
[356560923,1742673041274,-150.0,0.00023267,2]
[356560924,1742673041285,-250.0,0.00023288,2]
[356560925,1742673041295,-150.0,0.00023294,2]
[356560926,1742673041306,-498.39761691,0.000233,2]
[356560927,1742673041316,-150.0,0.00023322,2]
[356560928,1742673041325,-150.0,0.00023349,2]
[356560929,1742673041335,-150.0,0.00023377,2]
[356560930,1742673041344,-248.998,0.00023404,2]
[356560931,1742673041353,-150.1329436,0.0002351,2]
[356560932,1742673041363,-164.95,0.00023794,2]
[356560933,1742673041373,-166.1,0.00023836,2]
[356560934,1742673041382,-164.81,0.00023843,2]
[356560935,1742673041391,-1414.6,0.000245,2]
[356560936,1742673041401,-258.45691063,0.00024567,2]
[356560937,1742673041411,-2090.29092035,0.00024789,2]
[356560938,1742673041420,-152.593506,0.000248,7]
[356560939,1742673041430,-151.0,0.000248,7]
[356560940,1742673041440,-406434.331163,0.000248,3]
[356560941,1742673041449,-151.0,0.000248,7]
[356560942,1742673041458,-244.973553,0.000248,7]
[356560943,1742673041467,-244.973553,0.000248,7]
[356560944,1742673041477,-151.0,0.000248,7]
[356560945,1742673041486,-151.0,0.000249,7]
[356560946,1742673041496,-32428.65914136,0.000249,3]
[356560947,1742673041509,-997.91710076,0.000249,3]
[356560948,1742673041625,-29433.84624968,0.000249,3]
[356560949,1742673041634,-151.0,0.000249,7]
[356560950,1742673041644,-244.973553,0.000249,7]
[356560951,1742673041653,-244.973553,0.000249,7]
[356560952,1742673041663,-1379.48,0.00024918,2]
[356560953,1742673041673,-1002.2,0.00024942,2]
[356560954,1742673041683,-500.0,0.00026,120]
[356560955,1742673041692,-164.95,0.00026768,2]
[356560956,1742673041702,-164.81,0.00026823,120]
[356560957,1742673041712,-155.98,0.00026849,2]
[356560958,1742673041721,-153.33,0.00026849,2]
[356560959,1742673041731,-150.56,0.00026849,2]
[356560960,1742673041740,-155.61910586,0.00027,2]
[356560961,1742673041749,-500.0,0.00027,120]
[356560962,1742673041759,-1002.2,0.00027206,2]
[356560963,1742673041771,-179.78,0.00027388,120]
[356560964,1742673041781,-184.14,0.00027397,2]
[356560965,1742673041790,-500.0,0.000275,120]
[356560966,1742673041800,-959.37061676,0.00027872,2]
[356560967,1742673041810,-959.37061676,0.00027872,2]
[356560968,1742673041819,-500.0,0.00028,120]
[356560969,1742673041828,-2090.29092035,0.00028011,2]
[356560970,1742673041838,-166.756,0.00028421,2]
[356560971,1742673041847,-161.181,0.00028421,2]
[356560972,1742673041856,-170.898,0.00028421,2]
[356560973,1742673041866,-203.31707531,0.000287,5]
[356560974,1742673041875,-500.0,0.00029,120]
[356560975,1742673041884,-442.93,0.00029428,2]
[356560976,1742673041894,-442.93,0.00029428,2]
[356560977,1742673041904,-257.85,0.00029428,2]
[356560978,1742673041914,-1002.2,0.0002947,2]
[356560979,1742673041923,-500.0,0.0002947,2]
[356560980,1742673041932,-500.0,0.0002947,2]
[356560981,1742673041942,-500.0,0.0002947,2]
[356560982,1742673041951,-500.0,0.0002947,2]
[356560983,1742673041960,-500.0,0.0002947,2]
[356560984,1742673041969,-500.0,0.0002947,2]
[356560985,1742673041979,-500.0,0.0002947,2]
[356560986,1742673041990,-500.0,0.0002947,2]
[356560987,1742673041999,-500.0,0.0002947,2]
[356560988,1742673042009,-500.0,0.0002947,2]
[356560989,1742673042019,-500.0,0.0002947,2]
[356560990,1742673042028,-500.0,0.0002947,2]
[356560991,1742673042039,-500.0,0.0002947,2]
[356560992,1742673042048,-500.0,0.0002947,2]
[356560993,1742673042057,-500.0,0.0002947,2]
[356560994,1742673042067,-500.0,0.0002947,2]
[356560995,1742673042076,-500.0,0.0002947,2]
[356560996,1742673042085,-500.0,0.0002947,2]
[356560997,1742673042095,-500.0,0.0002947,2]
[356560998,1742673042104,-500.0,0.0002947,2]
[356560999,1742673042113,-500.0,0.0002947,2]
[356561000,1742673042122,-500.0,0.0002947,2]
[356561001,1742673042132,-500.0,0.0002947,2]
[356561002,1742673042141,-500.0,0.0002947,2]
[356561003,1742673042150,-500.0,0.0002947,2]
[356561004,1742673042158,-500.0,0.0002947,2]
[356561005,1742673042167,-500.0,0.0002947,2]
[356561006,1742673042176,-500.0,0.0002947,2]
[356561007,1742673042185,-500.0,0.0002947,2]
[356561008,1742673042194,-500.0,0.0002947,2]
[356561009,1742673042203,-500.0,0.0002947,2]
[356561010,1742673042213,-500.0,0.0002947,2]
[356561011,1742673042222,-500.0,0.0002947,2]
[356561012,1742673042231,-500.0,0.0002947,2]
[356561013,1742673042240,-500.0,0.0002947,2]
[356561014,1742673042249,-500.0,0.0002947,2]
[356561015,1742673042258,-500.0,0.0002947,2]
[356561016,1742673042267,-500.0,0.0002947,2]
[356561017,1742673042276,-500.0,0.0002947,2]
[356561018,1742673042285,-500.0,0.0002947,2]
[356561019,1742673042295,-500.0,0.0002947,2]
[356561020,1742673042304,-500.0,0.0002947,2]
[356561021,1742673042313,-500.0,0.0002947,2]